Workbook

Sheet P&L to Bud
BJ1: TOTAL
F2: Jan 23 | H2: Budget | J2: $ Over Budget | L2: % of Budget | N2: Feb 23 | P2: Budget | R2: $ Over Budget | T2: % of Budget | V2: Mar 23 | X2: Budget | Z2: $ Over Budget | AB2: % of Budget | AD2: Apr 23 | AF2: Budget | AH2: $ Over Budget | AJ2: % of Budget | AL2: May 23 | AN2: Budget | AP2: $ Over Budget | AR2: % of Budget | AT2: Jun 23 | AV2: Budget | AX2: $ Over Budget | AZ2: % of Budget | BB2: Jul 23 | BD2: Budget | BF2: $ Over Budget | BH2: % of Budget | BJ2: Jan - Jul 23 | BL2: Budget | BN2: $ Over Budget | BP2: % of Budget
B3: Ordinary Income/Expense
D4: Income
E5: 40000 · Member Dues and Fees | F5: 66850 | H5: 66250 | J5: =ROUND((F5-H5),5) -> 600 | L5: =ROUND(IF(H5=0, IF(F5=0, 0, 1), F5/H5),5) -> 1.00906 | N5: 65350 | P5: 66250 | R5: =ROUND((N5-P5),5) -> -900 | T5: =ROUND(IF(P5=0, IF(N5=0, 0, 1), N5/P5),5) -> 0.98642 | V5: 71300 | X5: 66250 | Z5: =ROUND((V5-X5),5) -> 5050 | AB5: =ROUND(IF(X5=0, IF(V5=0, 0, 1), V5/X5),5) -> 1.07623 | AD5: 64050 | AF5: 66250 | AH5: =ROUND((AD5-AF5),5) -> -2200 | AJ5: =ROUND(IF(AF5=0, IF(AD5=0, 0, 1), AD5/AF5),5) -> 0.96679 | AL5: 71800 | AN5: 66250 | AP5: =ROUND((AL5-AN5),5) -> 5550 | AR5: =ROUND(IF(AN5=0, IF(AL5=0, 0, 1), AL5/AN5),5) -> 1.08377 | AT5: 70300 | AV5: 66250 | AX5: =ROUND((AT5-AV5),5) -> 4050 | AZ5: =ROUND(IF(AV5=0, IF(AT5=0, 0, 1), AT5/AV5),5) -> 1.06113 | BB5: 63550 | BD5: 66250 | BF5: =ROUND((BB5-BD5),5) -> -2700 | BH5: =ROUND(IF(BD5=0, IF(BB5=0, 0, 1), BB5/BD5),5) -> 0.95925 | BJ5: =ROUND(F5+N5+V5+AD5+AL5+AT5+BB5,5) -> 473200 | BL5: =ROUND(H5+P5+X5+AF5+AN5+AV5+BD5,5) -> 463750 | BN5: =ROUND((BJ5-BL5),5) -> 9450 | BP5: =ROUND(IF(BL5=0, IF(BJ5=0, 0, 1), BJ5/BL5),5) -> 1.02038
E6: 40100 · Meal Sales | F6: 41371 | H6: 19000 | J6: =ROUND((F6-H6),5) -> 22371 | L6: =ROUND(IF(H6=0, IF(F6=0, 0, 1), F6/H6),5) -> 2.17742 | N6: 45613 | P6: 33000 | R6: =ROUND((N6-P6),5) -> 12613 | T6: =ROUND(IF(P6=0, IF(N6=0, 0, 1), N6/P6),5) -> 1.38221 | V6: 55366 | X6: 63801 | Z6: =ROUND((V6-X6),5) -> -8435 | AB6: =ROUND(IF(X6=0, IF(V6=0, 0, 1), V6/X6),5) -> 0.86779 | AD6: 86873 | AF6: 83300 | AH6: =ROUND((AD6-AF6),5) -> 3573 | AJ6: =ROUND(IF(AF6=0, IF(AD6=0, 0, 1), AD6/AF6),5) -> 1.04289 | AL6: 83229 | AN6: 80714 | AP6: =ROUND((AL6-AN6),5) -> 2515 | AR6: =ROUND(IF(AN6=0, IF(AL6=0, 0, 1), AL6/AN6),5) -> 1.03116 | AT6: 102719 | AV6: 92182 | AX6: =ROUND((AT6-AV6),5) -> 10537 | AZ6: =ROUND(IF(AV6=0, IF(AT6=0, 0, 1), AT6/AV6),5) -> 1.11431 | BB6: 70696 | BD6: 88295 | BF6: =ROUND((BB6-BD6),5) -> -17599 | BH6: =ROUND(IF(BD6=0, IF(BB6=0, 0, 1), BB6/BD6),5) -> 0.80068 | BJ6: =ROUND(F6+N6+V6+AD6+AL6+AT6+BB6,5) -> 485867 | BL6: =ROUND(H6+P6+X6+AF6+AN6+AV6+BD6,5) -> 460292 | BN6: =ROUND((BJ6-BL6),5) -> 25575 | BP6: =ROUND(IF(BL6=0, IF(BJ6=0, 0, 1), BJ6/BL6),5) -> 1.05556
E7: 40200 · Beverage Sales | F7: 8739 | H7: 5063 | J7: =ROUND((F7-H7),5) -> 3676 | L7: =ROUND(IF(H7=0, IF(F7=0, 0, 1), F7/H7),5) -> 1.72605 | N7: 6249 | P7: 6289 | R7: =ROUND((N7-P7),5) -> -40 | T7: =ROUND(IF(P7=0, IF(N7=0, 0, 1), N7/P7),5) -> 0.99364 | V7: 9893 | X7: 9000 | Z7: =ROUND((V7-X7),5) -> 893 | AB7: =ROUND(IF(X7=0, IF(V7=0, 0, 1), V7/X7),5) -> 1.09922 | AD7: 23777 | AF7: 13000 | AH7: =ROUND((AD7-AF7),5) -> 10777 | AJ7: =ROUND(IF(AF7=0, IF(AD7=0, 0, 1), AD7/AF7),5) -> 1.829 | AL7: 7710 | AN7: 13000 | AP7: =ROUND((AL7-AN7),5) -> -5290 | AR7: =ROUND(IF(AN7=0, IF(AL7=0, 0, 1), AL7/AN7),5) -> 0.59308 | AT7: 11378 | AV7: 16000 | AX7: =ROUND((AT7-AV7),5) -> -4622 | AZ7: =ROUND(IF(AV7=0, IF(AT7=0, 0, 1), AT7/AV7),5) -> 0.71113 | BB7: 7883 | BD7: 15000 | BF7: =ROUND((BB7-BD7),5) -> -7117 | BH7: =ROUND(IF(BD7=0, IF(BB7=0, 0, 1), BB7/BD7),5) -> 0.52553 | BJ7: =ROUND(F7+N7+V7+AD7+AL7+AT7+BB7,5) -> 75629 | BL7: =ROUND(H7+P7+X7+AF7+AN7+AV7+BD7,5) -> 77352 | BN7: =ROUND((BJ7-BL7),5) -> -1723 | BP7: =ROUND(IF(BL7=0, IF(BJ7=0, 0, 1), BJ7/BL7),5) -> 0.97773
E8: 40300 · Service Fees | F8: 4330 | H8: 578 | J8: =ROUND((F8-H8),5) -> 3752 | L8: =ROUND(IF(H8=0, IF(F8=0, 0, 1), F8/H8),5) -> 7.49135 | N8: 3047 | P8: 539 | R8: =ROUND((N8-P8),5) -> 2508 | T8: =ROUND(IF(P8=0, IF(N8=0, 0, 1), N8/P8),5) -> 5.65306 | V8: 3287 | X8: 6894 | Z8: =ROUND((V8-X8),5) -> -3607 | AB8: =ROUND(IF(X8=0, IF(V8=0, 0, 1), V8/X8),5) -> 0.47679 | AD8: 12027 | AF8: 9006 | AH8: =ROUND((AD8-AF8),5) -> 3021 | AJ8: =ROUND(IF(AF8=0, IF(AD8=0, 0, 1), AD8/AF8),5) -> 1.33544 | AL8: 4766 | AN8: 9025 | AP8: =ROUND((AL8-AN8),5) -> -4259 | AR8: =ROUND(IF(AN8=0, IF(AL8=0, 0, 1), AL8/AN8),5) -> 0.52809 | AT8: 9385 | AV8: 9388 | AX8: =ROUND((AT8-AV8),5) -> -3 | AZ8: =ROUND(IF(AV8=0, IF(AT8=0, 0, 1), AT8/AV8),5) -> 0.99968 | BB8: 5977 | BD8: 9058 | BF8: =ROUND((BB8-BD8),5) -> -3081 | BH8: =ROUND(IF(BD8=0, IF(BB8=0, 0, 1), BB8/BD8),5) -> 0.65986 | BJ8: =ROUND(F8+N8+V8+AD8+AL8+AT8+BB8,5) -> 42819 | BL8: =ROUND(H8+P8+X8+AF8+AN8+AV8+BD8,5) -> 44488 | BN8: =ROUND((BJ8-BL8),5) -> -1669 | BP8: =ROUND(IF(BL8=0, IF(BJ8=0, 0, 1), BJ8/BL8),5) -> 0.96248
E9: 40400 · Rental Income | F9: 0 | H9: 0 | J9: =ROUND((F9-H9),5) -> 0 | L9: =ROUND(IF(H9=0, IF(F9=0, 0, 1), F9/H9),5) -> 0 | N9: 0 | P9: 152 | R9: =ROUND((N9-P9),5) -> -152 | T9: =ROUND(IF(P9=0, IF(N9=0, 0, 1), N9/P9),5) -> 0 | V9: 0 | X9: 2600 | Z9: =ROUND((V9-X9),5) -> -2600 | AB9: =ROUND(IF(X9=0, IF(V9=0, 0, 1), V9/X9),5) -> 0 | AD9: 3132 | AF9: 2600 | AH9: =ROUND((AD9-AF9),5) -> 532 | AJ9: =ROUND(IF(AF9=0, IF(AD9=0, 0, 1), AD9/AF9),5) -> 1.20462 | AL9: 140 | AN9: 2600 | AP9: =ROUND((AL9-AN9),5) -> -2460 | AR9: =ROUND(IF(AN9=0, IF(AL9=0, 0, 1), AL9/AN9),5) -> 0.05385 | AT9: 15449 | AV9: 2600 | AX9: =ROUND((AT9-AV9),5) -> 12849 | AZ9: =ROUND(IF(AV9=0, IF(AT9=0, 0, 1), AT9/AV9),5) -> 5.94192 | BB9: 1000 | BD9: 2600 | BF9: =ROUND((BB9-BD9),5) -> -1600 | BH9: =ROUND(IF(BD9=0, IF(BB9=0, 0, 1), BB9/BD9),5) -> 0.38462 | BJ9: =ROUND(F9+N9+V9+AD9+AL9+AT9+BB9,5) -> 19721 | BL9: =ROUND(H9+P9+X9+AF9+AN9+AV9+BD9,5) -> 13152 | BN9: =ROUND((BJ9-BL9),5) -> 6569 | BP9: =ROUND(IF(BL9=0, IF(BJ9=0, 0, 1), BJ9/BL9),5) -> 1.49947
E10: 40800 · Other Income | F10: 675 | H10: 168 | J10: =ROUND((F10-H10),5) -> 507 | L10: =ROUND(IF(H10=0, IF(F10=0, 0, 1), F10/H10),5) -> 4.01786 | N10: 300 | P10: 919 | R10: =ROUND((N10-P10),5) -> -619 | T10: =ROUND(IF(P10=0, IF(N10=0, 0, 1), N10/P10),5) -> 0.32644 | V10: 71 | X10: 553 | Z10: =ROUND((V10-X10),5) -> -482 | AB10: =ROUND(IF(X10=0, IF(V10=0, 0, 1), V10/X10),5) -> 0.12839 | AD10: 430 | AF10: 670 | AH10: =ROUND((AD10-AF10),5) -> -240 | AJ10: =ROUND(IF(AF10=0, IF(AD10=0, 0, 1), AD10/AF10),5) -> 0.64179 | AL10: 230 | AN10: 757 | AP10: =ROUND((AL10-AN10),5) -> -527 | AR10: =ROUND(IF(AN10=0, IF(AL10=0, 0, 1), AL10/AN10),5) -> 0.30383 | AT10: 165 | AV10: 1402 | AX10: =ROUND((AT10-AV10),5) -> -1237 | AZ10: =ROUND(IF(AV10=0, IF(AT10=0, 0, 1), AT10/AV10),5) -> 0.11769 | BB10: 350 | BD10: 1335 | BF10: =ROUND((BB10-BD10),5) -> -985 | BH10: =ROUND(IF(BD10=0, IF(BB10=0, 0, 1), BB10/BD10),5) -> 0.26217 | BJ10: =ROUND(F10+N10+V10+AD10+AL10+AT10+BB10,5) -> 2221 | BL10: =ROUND(H10+P10+X10+AF10+AN10+AV10+BD10,5) -> 5804 | BN10: =ROUND((BJ10-BL10),5) -> -3583 | BP10: =ROUND(IF(BL10=0, IF(BJ10=0, 0, 1), BJ10/BL10),5) -> 0.38267
D11: Total Income | F11: =ROUND(SUM(F4:F10),5) -> 121965 | H11: =ROUND(SUM(H4:H10),5) -> 91059 | J11: =ROUND((F11-H11),5) -> 30906 | L11: =ROUND(IF(H11=0, IF(F11=0, 0, 1), F11/H11),5) -> 1.33941 | N11: =ROUND(SUM(N4:N10),5) -> 120559 | P11: =ROUND(SUM(P4:P10),5) -> 107149 | R11: =ROUND((N11-P11),5) -> 13410 | T11: =ROUND(IF(P11=0, IF(N11=0, 0, 1), N11/P11),5) -> 1.12515 | V11: =ROUND(SUM(V4:V10),5) -> 139917 | X11: =ROUND(SUM(X4:X10),5) -> 149098 | Z11: =ROUND((V11-X11),5) -> -9181 | AB11: =ROUND(IF(X11=0, IF(V11=0, 0, 1), V11/X11),5) -> 0.93842 | AD11: =ROUND(SUM(AD4:AD10),5) -> 190289 | AF11: =ROUND(SUM(AF4:AF10),5) -> 174826 | AH11: =ROUND((AD11-AF11),5) -> 15463 | AJ11: =ROUND(IF(AF11=0, IF(AD11=0, 0, 1), AD11/AF11),5) -> 1.08845 | AL11: =ROUND(SUM(AL4:AL10),5) -> 167875 | AN11: =ROUND(SUM(AN4:AN10),5) -> 172346 | AP11: =ROUND((AL11-AN11),5) -> -4471 | AR11: =ROUND(IF(AN11=0, IF(AL11=0, 0, 1), AL11/AN11),5) -> 0.97406 | AT11: =ROUND(SUM(AT4:AT10),5) -> 209396 | AV11: =ROUND(SUM(AV4:AV10),5) -> 187822 | AX11: =ROUND((AT11-AV11),5) -> 21574 | AZ11: =ROUND(IF(AV11=0, IF(AT11=0, 0, 1), AT11/AV11),5) -> 1.11486 | BB11: =ROUND(SUM(BB4:BB10),5) -> 149456 | BD11: =ROUND(SUM(BD4:BD10),5) -> 182538 | BF11: =ROUND((BB11-BD11),5) -> -33082 | BH11: =ROUND(IF(BD11=0, IF(BB11=0, 0, 1), BB11/BD11),5) -> 0.81877 | BJ11: =ROUND(F11+N11+V11+AD11+AL11+AT11+BB11,5) -> 1099457 | BL11: =ROUND(H11+P11+X11+AF11+AN11+AV11+BD11,5) -> 1064838 | BN11: =ROUND((BJ11-BL11),5) -> 34619 | BP11: =ROUND(IF(BL11=0, IF(BJ11=0, 0, 1), BJ11/BL11),5) -> 1.03251
C12: Gross Profit | F12: =F11 -> 121965 | H12: =H11 -> 91059 | J12: =ROUND((F12-H12),5) -> 30906 | L12: =ROUND(IF(H12=0, IF(F12=0, 0, 1), F12/H12),5) -> 1.33941 | N12: =N11 -> 120559 | P12: =P11 -> 107149 | R12: =ROUND((N12-P12),5) -> 13410 | T12: =ROUND(IF(P12=0, IF(N12=0, 0, 1), N12/P12),5) -> 1.12515 | V12: =V11 -> 139917 | X12: =X11 -> 149098 | Z12: =ROUND((V12-X12),5) -> -9181 | AB12: =ROUND(IF(X12=0, IF(V12=0, 0, 1), V12/X12),5) -> 0.93842 | AD12: =AD11 -> 190289 | AF12: =AF11 -> 174826 | AH12: =ROUND((AD12-AF12),5) -> 15463 | AJ12: =ROUND(IF(AF12=0, IF(AD12=0, 0, 1), AD12/AF12),5) -> 1.08845 | AL12: =AL11 -> 167875 | AN12: =AN11 -> 172346 | AP12: =ROUND((AL12-AN12),5) -> -4471 | AR12: =ROUND(IF(AN12=0, IF(AL12=0, 0, 1), AL12/AN12),5) -> 0.97406 | AT12: =AT11 -> 209396 | AV12: =AV11 -> 187822 | AX12: =ROUND((AT12-AV12),5) -> 21574 | AZ12: =ROUND(IF(AV12=0, IF(AT12=0, 0, 1), AT12/AV12),5) -> 1.11486 | BB12: =BB11 -> 149456 | BD12: =BD11 -> 182538 | BF12: =ROUND((BB12-BD12),5) -> -33082 | BH12: =ROUND(IF(BD12=0, IF(BB12=0, 0, 1), BB12/BD12),5) -> 0.81877 | BJ12: =ROUND(F12+N12+V12+AD12+AL12+AT12+BB12,5) -> 1099457 | BL12: =ROUND(H12+P12+X12+AF12+AN12+AV12+BD12,5) -> 1064838 | BN12: =ROUND((BJ12-BL12),5) -> 34619 | BP12: =ROUND(IF(BL12=0, IF(BJ12=0, 0, 1), BJ12/BL12),5) -> 1.03251
D13: Expense
E14: 55100 · Food Purchased | F14: 16506 | H14: 17020 | J14: =ROUND((F14-H14),5) -> -514 | L14: =ROUND(IF(H14=0, IF(F14=0, 0, 1), F14/H14),5) -> 0.9698 | N14: 18293 | P14: 20000 | R14: =ROUND((N14-P14),5) -> -1707 | T14: =ROUND(IF(P14=0, IF(N14=0, 0, 1), N14/P14),5) -> 0.91465 | V14: 21249 | X14: 22000 | Z14: =ROUND((V14-X14),5) -> -751 | AB14: =ROUND(IF(X14=0, IF(V14=0, 0, 1), V14/X14),5) -> 0.96586 | AD14: 27673 | AF14: 27000 | AH14: =ROUND((AD14-AF14),5) -> 673 | AJ14: =ROUND(IF(AF14=0, IF(AD14=0, 0, 1), AD14/AF14),5) -> 1.02493 | AL14: 27231 | AN14: 27000 | AP14: =ROUND((AL14-AN14),5) -> 231 | AR14: =ROUND(IF(AN14=0, IF(AL14=0, 0, 1), AL14/AN14),5) -> 1.00856 | AT14: 26056 | AV14: 28000 | AX14: =ROUND((AT14-AV14),5) -> -1944 | AZ14: =ROUND(IF(AV14=0, IF(AT14=0, 0, 1), AT14/AV14),5) -> 0.93057 | BB14: 22729 | BD14: 32000 | BF14: =ROUND((BB14-BD14),5) -> -9271 | BH14: =ROUND(IF(BD14=0, IF(BB14=0, 0, 1), BB14/BD14),5) -> 0.71028 | BJ14: =ROUND(F14+N14+V14+AD14+AL14+AT14+BB14,5) -> 159737 | BL14: =ROUND(H14+P14+X14+AF14+AN14+AV14+BD14,5) -> 173020 | BN14: =ROUND((BJ14-BL14),5) -> -13283 | BP14: =ROUND(IF(BL14=0, IF(BJ14=0, 0, 1), BJ14/BL14),5) -> 0.92323
E15: 55200 · Beverages | F15: 12326 | H15: 4051 | J15: =ROUND((F15-H15),5) -> 8275 | L15: =ROUND(IF(H15=0, IF(F15=0, 0, 1), F15/H15),5) -> 3.04271 | N15: 5382 | P15: 7805 | R15: =ROUND((N15-P15),5) -> -2423 | T15: =ROUND(IF(P15=0, IF(N15=0, 0, 1), N15/P15),5) -> 0.68956 | V15: 10200 | X15: 12716 | Z15: =ROUND((V15-X15),5) -> -2516 | AB15: =ROUND(IF(X15=0, IF(V15=0, 0, 1), V15/X15),5) -> 0.80214 | AD15: 22493 | AF15: 16643 | AH15: =ROUND((AD15-AF15),5) -> 5850 | AJ15: =ROUND(IF(AF15=0, IF(AD15=0, 0, 1), AD15/AF15),5) -> 1.3515 | AL15: 17719 | AN15: 11828 | AP15: =ROUND((AL15-AN15),5) -> 5891 | AR15: =ROUND(IF(AN15=0, IF(AL15=0, 0, 1), AL15/AN15),5) -> 1.49806 | AT15: 15121 | AV15: 15100 | AX15: =ROUND((AT15-AV15),5) -> 21 | AZ15: =ROUND(IF(AV15=0, IF(AT15=0, 0, 1), AT15/AV15),5) -> 1.00139 | BB15: 8477 | BD15: 17267 | BF15: =ROUND((BB15-BD15),5) -> -8790 | BH15: =ROUND(IF(BD15=0, IF(BB15=0, 0, 1), BB15/BD15),5) -> 0.49094 | BJ15: =ROUND(F15+N15+V15+AD15+AL15+AT15+BB15,5) -> 91718 | BL15: =ROUND(H15+P15+X15+AF15+AN15+AV15+BD15,5) -> 85410 | BN15: =ROUND((BJ15-BL15),5) -> 6308 | BP15: =ROUND(IF(BL15=0, IF(BJ15=0, 0, 1), BJ15/BL15),5) -> 1.07386
E16: 55300 · Kitchen Employee Expense | F16: 31159 | H16: 30332 | J16: =ROUND((F16-H16),5) -> 827 | L16: =ROUND(IF(H16=0, IF(F16=0, 0, 1), F16/H16),5) -> 1.02726 | N16: 31421 | P16: 30332 | R16: =ROUND((N16-P16),5) -> 1089 | T16: =ROUND(IF(P16=0, IF(N16=0, 0, 1), N16/P16),5) -> 1.0359 | V16: 29671 | X16: 30332 | Z16: =ROUND((V16-X16),5) -> -661 | AB16: =ROUND(IF(X16=0, IF(V16=0, 0, 1), V16/X16),5) -> 0.97821 | AD16: 31990 | AF16: 30332 | AH16: =ROUND((AD16-AF16),5) -> 1658 | AJ16: =ROUND(IF(AF16=0, IF(AD16=0, 0, 1), AD16/AF16),5) -> 1.05466 | AL16: 37353 | AN16: 30332 | AP16: =ROUND((AL16-AN16),5) -> 7021 | AR16: =ROUND(IF(AN16=0, IF(AL16=0, 0, 1), AL16/AN16),5) -> 1.23147 | AT16: 31704 | AV16: 30332 | AX16: =ROUND((AT16-AV16),5) -> 1372 | AZ16: =ROUND(IF(AV16=0, IF(AT16=0, 0, 1), AT16/AV16),5) -> 1.04523 | BB16: 35185 | BD16: 30332 | BF16: =ROUND((BB16-BD16),5) -> 4853 | BH16: =ROUND(IF(BD16=0, IF(BB16=0, 0, 1), BB16/BD16),5) -> 1.16 | BJ16: =ROUND(F16+N16+V16+AD16+AL16+AT16+BB16,5) -> 228483 | BL16: =ROUND(H16+P16+X16+AF16+AN16+AV16+BD16,5) -> 212324 | BN16: =ROUND((BJ16-BL16),5) -> 16159 | BP16: =ROUND(IF(BL16=0, IF(BJ16=0, 0, 1), BJ16/BL16),5) -> 1.07611
E17: 55400 · Front of House Employee Expense | F17: 24021 | H17: 30425 | J17: =ROUND((F17-H17),5) -> -6404 | L17: =ROUND(IF(H17=0, IF(F17=0, 0, 1), F17/H17),5) -> 0.78952 | N17: 23094 | P17: 30425 | R17: =ROUND((N17-P17),5) -> -7331 | T17: =ROUND(IF(P17=0, IF(N17=0, 0, 1), N17/P17),5) -> 0.75905 | V17: 24415 | X17: 30425 | Z17: =ROUND((V17-X17),5) -> -6010 | AB17: =ROUND(IF(X17=0, IF(V17=0, 0, 1), V17/X17),5) -> 0.80247 | AD17: 30535 | AF17: 30425 | AH17: =ROUND((AD17-AF17),5) -> 110 | AJ17: =ROUND(IF(AF17=0, IF(AD17=0, 0, 1), AD17/AF17),5) -> 1.00362 | AL17: 41005 | AN17: 30425 | AP17: =ROUND((AL17-AN17),5) -> 10580 | AR17: =ROUND(IF(AN17=0, IF(AL17=0, 0, 1), AL17/AN17),5) -> 1.34774 | AT17: 30573 | AV17: 30425 | AX17: =ROUND((AT17-AV17),5) -> 148 | AZ17: =ROUND(IF(AV17=0, IF(AT17=0, 0, 1), AT17/AV17),5) -> 1.00486 | BB17: 28697 | BD17: 30425 | BF17: =ROUND((BB17-BD17),5) -> -1728 | BH17: =ROUND(IF(BD17=0, IF(BB17=0, 0, 1), BB17/BD17),5) -> 0.9432 | BJ17: =ROUND(F17+N17+V17+AD17+AL17+AT17+BB17,5) -> 202340 | BL17: =ROUND(H17+P17+X17+AF17+AN17+AV17+BD17,5) -> 212975 | BN17: =ROUND((BJ17-BL17),5) -> -10635 | BP17: =ROUND(IF(BL17=0, IF(BJ17=0, 0, 1), BJ17/BL17),5) -> 0.95006
E18: 55500 · Kitchen Supplies | F18: 1058 | H18: 1098 | J18: =ROUND((F18-H18),5) -> -40 | L18: =ROUND(IF(H18=0, IF(F18=0, 0, 1), F18/H18),5) -> 0.96357 | N18: 464 | P18: 1098 | R18: =ROUND((N18-P18),5) -> -634 | T18: =ROUND(IF(P18=0, IF(N18=0, 0, 1), N18/P18),5) -> 0.42259 | V18: 1431 | X18: 1098 | Z18: =ROUND((V18-X18),5) -> 333 | AB18: =ROUND(IF(X18=0, IF(V18=0, 0, 1), V18/X18),5) -> 1.30328 | AD18: 708 | AF18: 1098 | AH18: =ROUND((AD18-AF18),5) -> -390 | AJ18: =ROUND(IF(AF18=0, IF(AD18=0, 0, 1), AD18/AF18),5) -> 0.64481 | AL18: 1035 | AN18: 1098 | AP18: =ROUND((AL18-AN18),5) -> -63 | AR18: =ROUND(IF(AN18=0, IF(AL18=0, 0, 1), AL18/AN18),5) -> 0.94262 | AT18: 1130 | AV18: 1098 | AX18: =ROUND((AT18-AV18),5) -> 32 | AZ18: =ROUND(IF(AV18=0, IF(AT18=0, 0, 1), AT18/AV18),5) -> 1.02914 | BB18: 445 | BD18: 1098 | BF18: =ROUND((BB18-BD18),5) -> -653 | BH18: =ROUND(IF(BD18=0, IF(BB18=0, 0, 1), BB18/BD18),5) -> 0.40528 | BJ18: =ROUND(F18+N18+V18+AD18+AL18+AT18+BB18,5) -> 6271 | BL18: =ROUND(H18+P18+X18+AF18+AN18+AV18+BD18,5) -> 7686 | BN18: =ROUND((BJ18-BL18),5) -> -1415 | BP18: =ROUND(IF(BL18=0, IF(BJ18=0, 0, 1), BJ18/BL18),5) -> 0.8159
E19: 55800 · Entertainment | F19: 654 | H19: 5426 | J19: =ROUND((F19-H19),5) -> -4772 | L19: =ROUND(IF(H19=0, IF(F19=0, 0, 1), F19/H19),5) -> 0.12053 | N19: 4854 | P19: 5426 | R19: =ROUND((N19-P19),5) -> -572 | T19: =ROUND(IF(P19=0, IF(N19=0, 0, 1), N19/P19),5) -> 0.89458 | V19: 2054 | X19: 5426 | Z19: =ROUND((V19-X19),5) -> -3372 | AB19: =ROUND(IF(X19=0, IF(V19=0, 0, 1), V19/X19),5) -> 0.37855 | AD19: 3454 | AF19: 5426 | AH19: =ROUND((AD19-AF19),5) -> -1972 | AJ19: =ROUND(IF(AF19=0, IF(AD19=0, 0, 1), AD19/AF19),5) -> 0.63656 | AL19: 7504 | AN19: 5426 | AP19: =ROUND((AL19-AN19),5) -> 2078 | AR19: =ROUND(IF(AN19=0, IF(AL19=0, 0, 1), AL19/AN19),5) -> 1.38297 | AT19: 10504 | AV19: 5426 | AX19: =ROUND((AT19-AV19),5) -> 5078 | AZ19: =ROUND(IF(AV19=0, IF(AT19=0, 0, 1), AT19/AV19),5) -> 1.93586 | BB19: 9604 | BD19: 5426 | BF19: =ROUND((BB19-BD19),5) -> 4178 | BH19: =ROUND(IF(BD19=0, IF(BB19=0, 0, 1), BB19/BD19),5) -> 1.77 | BJ19: =ROUND(F19+N19+V19+AD19+AL19+AT19+BB19,5) -> 38628 | BL19: =ROUND(H19+P19+X19+AF19+AN19+AV19+BD19,5) -> 37982 | BN19: =ROUND((BJ19-BL19),5) -> 646 | BP19: =ROUND(IF(BL19=0, IF(BJ19=0, 0, 1), BJ19/BL19),5) -> 1.01701
E20: 60000 · General & Admin Employee Exp | F20: 24908 | H20: 26572 | J20: =ROUND((F20-H20),5) -> -1664 | L20: =ROUND(IF(H20=0, IF(F20=0, 0, 1), F20/H20),5) -> 0.93738 | N20: 24328 | P20: 26572 | R20: =ROUND((N20-P20),5) -> -2244 | T20: =ROUND(IF(P20=0, IF(N20=0, 0, 1), N20/P20),5) -> 0.91555 | V20: 24203 | X20: 26572 | Z20: =ROUND((V20-X20),5) -> -2369 | AB20: =ROUND(IF(X20=0, IF(V20=0, 0, 1), V20/X20),5) -> 0.91085 | AD20: 24203 | AF20: 26572 | AH20: =ROUND((AD20-AF20),5) -> -2369 | AJ20: =ROUND(IF(AF20=0, IF(AD20=0, 0, 1), AD20/AF20),5) -> 0.91085 | AL20: 25727 | AN20: 26572 | AP20: =ROUND((AL20-AN20),5) -> -845 | AR20: =ROUND(IF(AN20=0, IF(AL20=0, 0, 1), AL20/AN20),5) -> 0.9682 | AT20: 24203 | AV20: 26572 | AX20: =ROUND((AT20-AV20),5) -> -2369 | AZ20: =ROUND(IF(AV20=0, IF(AT20=0, 0, 1), AT20/AV20),5) -> 0.91085 | BB20: 24203 | BD20: 26572 | BF20: =ROUND((BB20-BD20),5) -> -2369 | BH20: =ROUND(IF(BD20=0, IF(BB20=0, 0, 1), BB20/BD20),5) -> 0.91085 | BJ20: =ROUND(F20+N20+V20+AD20+AL20+AT20+BB20,5) -> 171775 | BL20: =ROUND(H20+P20+X20+AF20+AN20+AV20+BD20,5) -> 186004 | BN20: =ROUND((BJ20-BL20),5) -> -14229 | BP20: =ROUND(IF(BL20=0, IF(BJ20=0, 0, 1), BJ20/BL20),5) -> 0.9235
E21: 60700 · Advertising & Promotional | F21: 887 | H21: 2065 | J21: =ROUND((F21-H21),5) -> -1178 | L21: =ROUND(IF(H21=0, IF(F21=0, 0, 1), F21/H21),5) -> 0.42954 | N21: 1139 | P21: 2065 | R21: =ROUND((N21-P21),5) -> -926 | T21: =ROUND(IF(P21=0, IF(N21=0, 0, 1), N21/P21),5) -> 0.55157 | V21: 905 | X21: 2065 | Z21: =ROUND((V21-X21),5) -> -1160 | AB21: =ROUND(IF(X21=0, IF(V21=0, 0, 1), V21/X21),5) -> 0.43826 | AD21: 607 | AF21: 2065 | AH21: =ROUND((AD21-AF21),5) -> -1458 | AJ21: =ROUND(IF(AF21=0, IF(AD21=0, 0, 1), AD21/AF21),5) -> 0.29395 | AL21: 4322 | AN21: 2065 | AP21: =ROUND((AL21-AN21),5) -> 2257 | AR21: =ROUND(IF(AN21=0, IF(AL21=0, 0, 1), AL21/AN21),5) -> 2.09298 | AT21: 3567 | AV21: 2065 | AX21: =ROUND((AT21-AV21),5) -> 1502 | AZ21: =ROUND(IF(AV21=0, IF(AT21=0, 0, 1), AT21/AV21),5) -> 1.72736 | BB21: 5057 | BD21: 2065 | BF21: =ROUND((BB21-BD21),5) -> 2992 | BH21: =ROUND(IF(BD21=0, IF(BB21=0, 0, 1), BB21/BD21),5) -> 2.44891 | BJ21: =ROUND(F21+N21+V21+AD21+AL21+AT21+BB21,5) -> 16484 | BL21: =ROUND(H21+P21+X21+AF21+AN21+AV21+BD21,5) -> 14455 | BN21: =ROUND((BJ21-BL21),5) -> 2029 | BP21: =ROUND(IF(BL21=0, IF(BJ21=0, 0, 1), BJ21/BL21),5) -> 1.14037
E22: 62020 · Dues & Subscriptions | F22: 338 | H22: 85 | J22: =ROUND((F22-H22),5) -> 253 | L22: =ROUND(IF(H22=0, IF(F22=0, 0, 1), F22/H22),5) -> 3.97647 | N22: 0 | P22: 85 | R22: =ROUND((N22-P22),5) -> -85 | T22: =ROUND(IF(P22=0, IF(N22=0, 0, 1), N22/P22),5) -> 0 | V22: 0 | X22: 85 | Z22: =ROUND((V22-X22),5) -> -85 | AB22: =ROUND(IF(X22=0, IF(V22=0, 0, 1), V22/X22),5) -> 0 | AD22: 401 | AF22: 85 | AH22: =ROUND((AD22-AF22),5) -> 316 | AJ22: =ROUND(IF(AF22=0, IF(AD22=0, 0, 1), AD22/AF22),5) -> 4.71765 | AL22: 0 | AN22: 85 | AP22: =ROUND((AL22-AN22),5) -> -85 | AR22: =ROUND(IF(AN22=0, IF(AL22=0, 0, 1), AL22/AN22),5) -> 0 | AT22: 0 | AV22: 85 | AX22: =ROUND((AT22-AV22),5) -> -85 | AZ22: =ROUND(IF(AV22=0, IF(AT22=0, 0, 1), AT22/AV22),5) -> 0 | BB22: 401 | BD22: 85 | BF22: =ROUND((BB22-BD22),5) -> 316 | BH22: =ROUND(IF(BD22=0, IF(BB22=0, 0, 1), BB22/BD22),5) -> 4.71765 | BJ22: =ROUND(F22+N22+V22+AD22+AL22+AT22+BB22,5) -> 1140 | BL22: =ROUND(H22+P22+X22+AF22+AN22+AV22+BD22,5) -> 595 | BN22: =ROUND((BJ22-BL22),5) -> 545 | BP22: =ROUND(IF(BL22=0, IF(BJ22=0, 0, 1), BJ22/BL22),5) -> 1.91597
E23: 62030 · Equipment Rental | F23: 333 | H23: 2101 | J23: =ROUND((F23-H23),5) -> -1768 | L23: =ROUND(IF(H23=0, IF(F23=0, 0, 1), F23/H23),5) -> 0.1585 | N23: 458 | P23: 2101 | R23: =ROUND((N23-P23),5) -> -1643 | T23: =ROUND(IF(P23=0, IF(N23=0, 0, 1), N23/P23),5) -> 0.21799 | V23: 391 | X23: 2101 | Z23: =ROUND((V23-X23),5) -> -1710 | AB23: =ROUND(IF(X23=0, IF(V23=0, 0, 1), V23/X23),5) -> 0.1861 | AD23: 4932 | AF23: 2101 | AH23: =ROUND((AD23-AF23),5) -> 2831 | AJ23: =ROUND(IF(AF23=0, IF(AD23=0, 0, 1), AD23/AF23),5) -> 2.34745 | AL23: 2203 | AN23: 2101 | AP23: =ROUND((AL23-AN23),5) -> 102 | AR23: =ROUND(IF(AN23=0, IF(AL23=0, 0, 1), AL23/AN23),5) -> 1.04855 | AT23: 9888 | AV23: 2101 | AX23: =ROUND((AT23-AV23),5) -> 7787 | AZ23: =ROUND(IF(AV23=0, IF(AT23=0, 0, 1), AT23/AV23),5) -> 4.70633 | BB23: 3400 | BD23: 2101 | BF23: =ROUND((BB23-BD23),5) -> 1299 | BH23: =ROUND(IF(BD23=0, IF(BB23=0, 0, 1), BB23/BD23),5) -> 1.61828 | BJ23: =ROUND(F23+N23+V23+AD23+AL23+AT23+BB23,5) -> 21605 | BL23: =ROUND(H23+P23+X23+AF23+AN23+AV23+BD23,5) -> 14707 | BN23: =ROUND((BJ23-BL23),5) -> 6898 | BP23: =ROUND(IF(BL23=0, IF(BJ23=0, 0, 1), BJ23/BL23),5) -> 1.46903
E24: 62040 · Repairs & Maintenance | F24: 5558 | H24: 6782 | J24: =ROUND((F24-H24),5) -> -1224 | L24: =ROUND(IF(H24=0, IF(F24=0, 0, 1), F24/H24),5) -> 0.81952 | N24: 8028 | P24: 6782 | R24: =ROUND((N24-P24),5) -> 1246 | T24: =ROUND(IF(P24=0, IF(N24=0, 0, 1), N24/P24),5) -> 1.18372 | V24: 2888 | X24: 6782 | Z24: =ROUND((V24-X24),5) -> -3894 | AB24: =ROUND(IF(X24=0, IF(V24=0, 0, 1), V24/X24),5) -> 0.42583 | AD24: 8601 | AF24: 6782 | AH24: =ROUND((AD24-AF24),5) -> 1819 | AJ24: =ROUND(IF(AF24=0, IF(AD24=0, 0, 1), AD24/AF24),5) -> 1.26821 | AL24: 5057 | AN24: 6782 | AP24: =ROUND((AL24-AN24),5) -> -1725 | AR24: =ROUND(IF(AN24=0, IF(AL24=0, 0, 1), AL24/AN24),5) -> 0.74565 | AT24: 5211 | AV24: 6782 | AX24: =ROUND((AT24-AV24),5) -> -1571 | AZ24: =ROUND(IF(AV24=0, IF(AT24=0, 0, 1), AT24/AV24),5) -> 0.76836 | BB24: 5483 | BD24: 6782 | BF24: =ROUND((BB24-BD24),5) -> -1299 | BH24: =ROUND(IF(BD24=0, IF(BB24=0, 0, 1), BB24/BD24),5) -> 0.80846 | BJ24: =ROUND(F24+N24+V24+AD24+AL24+AT24+BB24,5) -> 40826 | BL24: =ROUND(H24+P24+X24+AF24+AN24+AV24+BD24,5) -> 47474 | BN24: =ROUND((BJ24-BL24),5) -> -6648 | BP24: =ROUND(IF(BL24=0, IF(BJ24=0, 0, 1), BJ24/BL24),5) -> 0.85997
E25: 62100 · Auto related | F25: 51 | H25: 64 | J25: =ROUND((F25-H25),5) -> -13 | L25: =ROUND(IF(H25=0, IF(F25=0, 0, 1), F25/H25),5) -> 0.79688 | N25: 114 | P25: 64 | R25: =ROUND((N25-P25),5) -> 50 | T25: =ROUND(IF(P25=0, IF(N25=0, 0, 1), N25/P25),5) -> 1.78125 | V25: 0 | X25: 64 | Z25: =ROUND((V25-X25),5) -> -64 | AB25: =ROUND(IF(X25=0, IF(V25=0, 0, 1), V25/X25),5) -> 0 | AD25: 170 | AF25: 64 | AH25: =ROUND((AD25-AF25),5) -> 106 | AJ25: =ROUND(IF(AF25=0, IF(AD25=0, 0, 1), AD25/AF25),5) -> 2.65625 | AL25: 75 | AN25: 64 | AP25: =ROUND((AL25-AN25),5) -> 11 | AR25: =ROUND(IF(AN25=0, IF(AL25=0, 0, 1), AL25/AN25),5) -> 1.17188 | AT25: 80 | AV25: 64 | AX25: =ROUND((AT25-AV25),5) -> 16 | AZ25: =ROUND(IF(AV25=0, IF(AT25=0, 0, 1), AT25/AV25),5) -> 1.25 | BB25: 116 | BD25: 64 | BF25: =ROUND((BB25-BD25),5) -> 52 | BH25: =ROUND(IF(BD25=0, IF(BB25=0, 0, 1), BB25/BD25),5) -> 1.8125 | BJ25: =ROUND(F25+N25+V25+AD25+AL25+AT25+BB25,5) -> 606 | BL25: =ROUND(H25+P25+X25+AF25+AN25+AV25+BD25,5) -> 448 | BN25: =ROUND((BJ25-BL25),5) -> 158 | BP25: =ROUND(IF(BL25=0, IF(BJ25=0, 0, 1), BJ25/BL25),5) -> 1.35268
E26: 62200 · Meals and Entertainment | F26: 3278 | H26: 60 | J26: =ROUND((F26-H26),5) -> 3218 | L26: =ROUND(IF(H26=0, IF(F26=0, 0, 1), F26/H26),5) -> 54.63333 | N26: 0 | P26: 60 | R26: =ROUND((N26-P26),5) -> -60 | T26: =ROUND(IF(P26=0, IF(N26=0, 0, 1), N26/P26),5) -> 0 | V26: 157 | X26: 60 | Z26: =ROUND((V26-X26),5) -> 97 | AB26: =ROUND(IF(X26=0, IF(V26=0, 0, 1), V26/X26),5) -> 2.61667 | AD26: 0 | AF26: 60 | AH26: =ROUND((AD26-AF26),5) -> -60 | AJ26: =ROUND(IF(AF26=0, IF(AD26=0, 0, 1), AD26/AF26),5) -> 0 | AL26: 0 | AN26: 60 | AP26: =ROUND((AL26-AN26),5) -> -60 | AR26: =ROUND(IF(AN26=0, IF(AL26=0, 0, 1), AL26/AN26),5) -> 0 | AT26: 0 | AV26: 60 | AX26: =ROUND((AT26-AV26),5) -> -60 | AZ26: =ROUND(IF(AV26=0, IF(AT26=0, 0, 1), AT26/AV26),5) -> 0 | BB26: 0 | BD26: 60 | BF26: =ROUND((BB26-BD26),5) -> -60 | BH26: =ROUND(IF(BD26=0, IF(BB26=0, 0, 1), BB26/BD26),5) -> 0 | BJ26: =ROUND(F26+N26+V26+AD26+AL26+AT26+BB26,5) -> 3435 | BL26: =ROUND(H26+P26+X26+AF26+AN26+AV26+BD26,5) -> 420 | BN26: =ROUND((BJ26-BL26),5) -> 3015 | BP26: =ROUND(IF(BL26=0, IF(BJ26=0, 0, 1), BJ26/BL26),5) -> 8.17857
E27: 62300 · Postage | F27: 0 | H27: 211 | J27: =ROUND((F27-H27),5) -> -211 | L27: =ROUND(IF(H27=0, IF(F27=0, 0, 1), F27/H27),5) -> 0 | N27: 676 | P27: 211 | R27: =ROUND((N27-P27),5) -> 465 | T27: =ROUND(IF(P27=0, IF(N27=0, 0, 1), N27/P27),5) -> 3.20379 | V27: 31 | X27: 211 | Z27: =ROUND((V27-X27),5) -> -180 | AB27: =ROUND(IF(X27=0, IF(V27=0, 0, 1), V27/X27),5) -> 0.14692 | AD27: 630 | AF27: 211 | AH27: =ROUND((AD27-AF27),5) -> 419 | AJ27: =ROUND(IF(AF27=0, IF(AD27=0, 0, 1), AD27/AF27),5) -> 2.98578 | AL27: 0 | AN27: 211 | AP27: =ROUND((AL27-AN27),5) -> -211 | AR27: =ROUND(IF(AN27=0, IF(AL27=0, 0, 1), AL27/AN27),5) -> 0 | AT27: 630 | AV27: 211 | AX27: =ROUND((AT27-AV27),5) -> 419 | AZ27: =ROUND(IF(AV27=0, IF(AT27=0, 0, 1), AT27/AV27),5) -> 2.98578 | BB27: 0 | BD27: 211 | BF27: =ROUND((BB27-BD27),5) -> -211 | BH27: =ROUND(IF(BD27=0, IF(BB27=0, 0, 1), BB27/BD27),5) -> 0 | BJ27: =ROUND(F27+N27+V27+AD27+AL27+AT27+BB27,5) -> 1967 | BL27: =ROUND(H27+P27+X27+AF27+AN27+AV27+BD27,5) -> 1477 | BN27: =ROUND((BJ27-BL27),5) -> 490 | BP27: =ROUND(IF(BL27=0, IF(BJ27=0, 0, 1), BJ27/BL27),5) -> 1.33175
E28: 62400 · Printing | F28: 1101 | H28: 160 | J28: =ROUND((F28-H28),5) -> 941 | L28: =ROUND(IF(H28=0, IF(F28=0, 0, 1), F28/H28),5) -> 6.88125 | N28: 0 | P28: 160 | R28: =ROUND((N28-P28),5) -> -160 | T28: =ROUND(IF(P28=0, IF(N28=0, 0, 1), N28/P28),5) -> 0 | V28: 378 | X28: 160 | Z28: =ROUND((V28-X28),5) -> 218 | AB28: =ROUND(IF(X28=0, IF(V28=0, 0, 1), V28/X28),5) -> 2.3625 | AD28: 0 | AF28: 160 | AH28: =ROUND((AD28-AF28),5) -> -160 | AJ28: =ROUND(IF(AF28=0, IF(AD28=0, 0, 1), AD28/AF28),5) -> 0 | AL28: 0 | AN28: 160 | AP28: =ROUND((AL28-AN28),5) -> -160 | AR28: =ROUND(IF(AN28=0, IF(AL28=0, 0, 1), AL28/AN28),5) -> 0 | AT28: 0 | AV28: 160 | AX28: =ROUND((AT28-AV28),5) -> -160 | AZ28: =ROUND(IF(AV28=0, IF(AT28=0, 0, 1), AT28/AV28),5) -> 0 | BB28: 0 | BD28: 160 | BF28: =ROUND((BB28-BD28),5) -> -160 | BH28: =ROUND(IF(BD28=0, IF(BB28=0, 0, 1), BB28/BD28),5) -> 0 | BJ28: =ROUND(F28+N28+V28+AD28+AL28+AT28+BB28,5) -> 1479 | BL28: =ROUND(H28+P28+X28+AF28+AN28+AV28+BD28,5) -> 1120 | BN28: =ROUND((BJ28-BL28),5) -> 359 | BP28: =ROUND(IF(BL28=0, IF(BJ28=0, 0, 1), BJ28/BL28),5) -> 1.32054
E29: 62500 · Training | F29: 100 | H29: 325 | J29: =ROUND((F29-H29),5) -> -225 | L29: =ROUND(IF(H29=0, IF(F29=0, 0, 1), F29/H29),5) -> 0.30769 | N29: 850 | P29: 325 | R29: =ROUND((N29-P29),5) -> 525 | T29: =ROUND(IF(P29=0, IF(N29=0, 0, 1), N29/P29),5) -> 2.61538 | V29: 262 | X29: 325 | Z29: =ROUND((V29-X29),5) -> -63 | AB29: =ROUND(IF(X29=0, IF(V29=0, 0, 1), V29/X29),5) -> 0.80615 | AD29: 0 | AF29: 325 | AH29: =ROUND((AD29-AF29),5) -> -325 | AJ29: =ROUND(IF(AF29=0, IF(AD29=0, 0, 1), AD29/AF29),5) -> 0 | AL29: 0 | AN29: 325 | AP29: =ROUND((AL29-AN29),5) -> -325 | AR29: =ROUND(IF(AN29=0, IF(AL29=0, 0, 1), AL29/AN29),5) -> 0 | AT29: 0 | AV29: 325 | AX29: =ROUND((AT29-AV29),5) -> -325 | AZ29: =ROUND(IF(AV29=0, IF(AT29=0, 0, 1), AT29/AV29),5) -> 0 | BB29: 0 | BD29: 325 | BF29: =ROUND((BB29-BD29),5) -> -325 | BH29: =ROUND(IF(BD29=0, IF(BB29=0, 0, 1), BB29/BD29),5) -> 0 | BJ29: =ROUND(F29+N29+V29+AD29+AL29+AT29+BB29,5) -> 1212 | BL29: =ROUND(H29+P29+X29+AF29+AN29+AV29+BD29,5) -> 2275 | BN29: =ROUND((BJ29-BL29),5) -> -1063 | BP29: =ROUND(IF(BL29=0, IF(BJ29=0, 0, 1), BJ29/BL29),5) -> 0.53275
E30: 63000 · Insurance | F30: 2782 | H30: 3923 | J30: =ROUND((F30-H30),5) -> -1141 | L30: =ROUND(IF(H30=0, IF(F30=0, 0, 1), F30/H30),5) -> 0.70915 | N30: 1417 | P30: 3923 | R30: =ROUND((N30-P30),5) -> -2506 | T30: =ROUND(IF(P30=0, IF(N30=0, 0, 1), N30/P30),5) -> 0.3612 | V30: -926 | X30: 3923 | Z30: =ROUND((V30-X30),5) -> -4849 | AB30: =ROUND(IF(X30=0, IF(V30=0, 0, 1), V30/X30),5) -> -0.23604 | AD30: 2786 | AF30: 3923 | AH30: =ROUND((AD30-AF30),5) -> -1137 | AJ30: =ROUND(IF(AF30=0, IF(AD30=0, 0, 1), AD30/AF30),5) -> 0.71017 | AL30: 2950 | AN30: 3923 | AP30: =ROUND((AL30-AN30),5) -> -973 | AR30: =ROUND(IF(AN30=0, IF(AL30=0, 0, 1), AL30/AN30),5) -> 0.75198 | AT30: 2806 | AV30: 3923 | AX30: =ROUND((AT30-AV30),5) -> -1117 | AZ30: =ROUND(IF(AV30=0, IF(AT30=0, 0, 1), AT30/AV30),5) -> 0.71527 | BB30: 2786 | BD30: 3923 | BF30: =ROUND((BB30-BD30),5) -> -1137 | BH30: =ROUND(IF(BD30=0, IF(BB30=0, 0, 1), BB30/BD30),5) -> 0.71017 | BJ30: =ROUND(F30+N30+V30+AD30+AL30+AT30+BB30,5) -> 14601 | BL30: =ROUND(H30+P30+X30+AF30+AN30+AV30+BD30,5) -> 27461 | BN30: =ROUND((BJ30-BL30),5) -> -12860 | BP30: =ROUND(IF(BL30=0, IF(BJ30=0, 0, 1), BJ30/BL30),5) -> 0.5317
E31: 64000 · Supplies and Related | F31: 5637 | H31: 3487 | J31: =ROUND((F31-H31),5) -> 2150 | L31: =ROUND(IF(H31=0, IF(F31=0, 0, 1), F31/H31),5) -> 1.61658 | N31: 4729 | P31: 3487 | R31: =ROUND((N31-P31),5) -> 1242 | T31: =ROUND(IF(P31=0, IF(N31=0, 0, 1), N31/P31),5) -> 1.35618 | V31: 2052 | X31: 3487 | Z31: =ROUND((V31-X31),5) -> -1435 | AB31: =ROUND(IF(X31=0, IF(V31=0, 0, 1), V31/X31),5) -> 0.58847 | AD31: 2219 | AF31: 3487 | AH31: =ROUND((AD31-AF31),5) -> -1268 | AJ31: =ROUND(IF(AF31=0, IF(AD31=0, 0, 1), AD31/AF31),5) -> 0.63636 | AL31: 4883 | AN31: 3487 | AP31: =ROUND((AL31-AN31),5) -> 1396 | AR31: =ROUND(IF(AN31=0, IF(AL31=0, 0, 1), AL31/AN31),5) -> 1.40034 | AT31: 2851 | AV31: 3487 | AX31: =ROUND((AT31-AV31),5) -> -636 | AZ31: =ROUND(IF(AV31=0, IF(AT31=0, 0, 1), AT31/AV31),5) -> 0.81761 | BB31: 3770 | BD31: 3487 | BF31: =ROUND((BB31-BD31),5) -> 283 | BH31: =ROUND(IF(BD31=0, IF(BB31=0, 0, 1), BB31/BD31),5) -> 1.08116 | BJ31: =ROUND(F31+N31+V31+AD31+AL31+AT31+BB31,5) -> 26141 | BL31: =ROUND(H31+P31+X31+AF31+AN31+AV31+BD31,5) -> 24409 | BN31: =ROUND((BJ31-BL31),5) -> 1732 | BP31: =ROUND(IF(BL31=0, IF(BJ31=0, 0, 1), BJ31/BL31),5) -> 1.07096
E32: 65000 · Professional Services | F32: 4557 | H32: 3015 | J32: =ROUND((F32-H32),5) -> 1542 | L32: =ROUND(IF(H32=0, IF(F32=0, 0, 1), F32/H32),5) -> 1.51144 | N32: 4038 | P32: 3015 | R32: =ROUND((N32-P32),5) -> 1023 | T32: =ROUND(IF(P32=0, IF(N32=0, 0, 1), N32/P32),5) -> 1.3393 | V32: 3247 | X32: 3015 | Z32: =ROUND((V32-X32),5) -> 232 | AB32: =ROUND(IF(X32=0, IF(V32=0, 0, 1), V32/X32),5) -> 1.07695 | AD32: 2706 | AF32: 3015 | AH32: =ROUND((AD32-AF32),5) -> -309 | AJ32: =ROUND(IF(AF32=0, IF(AD32=0, 0, 1), AD32/AF32),5) -> 0.89751 | AL32: 3011 | AN32: 3015 | AP32: =ROUND((AL32-AN32),5) -> -4 | AR32: =ROUND(IF(AN32=0, IF(AL32=0, 0, 1), AL32/AN32),5) -> 0.99867 | AT32: 3699 | AV32: 3015 | AX32: =ROUND((AT32-AV32),5) -> 684 | AZ32: =ROUND(IF(AV32=0, IF(AT32=0, 0, 1), AT32/AV32),5) -> 1.22687 | BB32: 2832 | BD32: 3015 | BF32: =ROUND((BB32-BD32),5) -> -183 | BH32: =ROUND(IF(BD32=0, IF(BB32=0, 0, 1), BB32/BD32),5) -> 0.9393 | BJ32: =ROUND(F32+N32+V32+AD32+AL32+AT32+BB32,5) -> 24090 | BL32: =ROUND(H32+P32+X32+AF32+AN32+AV32+BD32,5) -> 21105 | BN32: =ROUND((BJ32-BL32),5) -> 2985 | BP32: =ROUND(IF(BL32=0, IF(BJ32=0, 0, 1), BJ32/BL32),5) -> 1.14144
E33: 65050 · Other Outside Services | F33: 322 | H33: 2579 | J33: =ROUND((F33-H33),5) -> -2257 | L33: =ROUND(IF(H33=0, IF(F33=0, 0, 1), F33/H33),5) -> 0.12485 | N33: 971 | P33: 2579 | R33: =ROUND((N33-P33),5) -> -1608 | T33: =ROUND(IF(P33=0, IF(N33=0, 0, 1), N33/P33),5) -> 0.3765 | V33: 1214 | X33: 2579 | Z33: =ROUND((V33-X33),5) -> -1365 | AB33: =ROUND(IF(X33=0, IF(V33=0, 0, 1), V33/X33),5) -> 0.47073 | AD33: 1401 | AF33: 2579 | AH33: =ROUND((AD33-AF33),5) -> -1178 | AJ33: =ROUND(IF(AF33=0, IF(AD33=0, 0, 1), AD33/AF33),5) -> 0.54323 | AL33: 1428 | AN33: 2579 | AP33: =ROUND((AL33-AN33),5) -> -1151 | AR33: =ROUND(IF(AN33=0, IF(AL33=0, 0, 1), AL33/AN33),5) -> 0.5537 | AT33: 1680 | AV33: 2579 | AX33: =ROUND((AT33-AV33),5) -> -899 | AZ33: =ROUND(IF(AV33=0, IF(AT33=0, 0, 1), AT33/AV33),5) -> 0.65142 | BB33: 1401 | BD33: 2579 | BF33: =ROUND((BB33-BD33),5) -> -1178 | BH33: =ROUND(IF(BD33=0, IF(BB33=0, 0, 1), BB33/BD33),5) -> 0.54323 | BJ33: =ROUND(F33+N33+V33+AD33+AL33+AT33+BB33,5) -> 8417 | BL33: =ROUND(H33+P33+X33+AF33+AN33+AV33+BD33,5) -> 18053 | BN33: =ROUND((BJ33-BL33),5) -> -9636 | BP33: =ROUND(IF(BL33=0, IF(BJ33=0, 0, 1), BJ33/BL33),5) -> 0.46624
E34: 66000 · Bank and Other Service Charges | F34: 462 | H34: 290 | J34: =ROUND((F34-H34),5) -> 172 | L34: =ROUND(IF(H34=0, IF(F34=0, 0, 1), F34/H34),5) -> 1.5931 | N34: 252 | P34: 290 | R34: =ROUND((N34-P34),5) -> -38 | T34: =ROUND(IF(P34=0, IF(N34=0, 0, 1), N34/P34),5) -> 0.86897 | V34: 258 | X34: 290 | Z34: =ROUND((V34-X34),5) -> -32 | AB34: =ROUND(IF(X34=0, IF(V34=0, 0, 1), V34/X34),5) -> 0.88966 | AD34: 266 | AF34: 290 | AH34: =ROUND((AD34-AF34),5) -> -24 | AJ34: =ROUND(IF(AF34=0, IF(AD34=0, 0, 1), AD34/AF34),5) -> 0.91724 | AL34: 285 | AN34: 290 | AP34: =ROUND((AL34-AN34),5) -> -5 | AR34: =ROUND(IF(AN34=0, IF(AL34=0, 0, 1), AL34/AN34),5) -> 0.98276 | AT34: 293 | AV34: 290 | AX34: =ROUND((AT34-AV34),5) -> 3 | AZ34: =ROUND(IF(AV34=0, IF(AT34=0, 0, 1), AT34/AV34),5) -> 1.01034 | BB34: 277 | BD34: 290 | BF34: =ROUND((BB34-BD34),5) -> -13 | BH34: =ROUND(IF(BD34=0, IF(BB34=0, 0, 1), BB34/BD34),5) -> 0.95517 | BJ34: =ROUND(F34+N34+V34+AD34+AL34+AT34+BB34,5) -> 2093 | BL34: =ROUND(H34+P34+X34+AF34+AN34+AV34+BD34,5) -> 2030 | BN34: =ROUND((BJ34-BL34),5) -> 63 | BP34: =ROUND(IF(BL34=0, IF(BJ34=0, 0, 1), BJ34/BL34),5) -> 1.03103
E35: 67000 · Taxes and Fees | F35: 0 | H35: 0 | J35: =ROUND((F35-H35),5) -> 0 | L35: =ROUND(IF(H35=0, IF(F35=0, 0, 1), F35/H35),5) -> 0 | N35: 7112 | P35: 7000 | R35: =ROUND((N35-P35),5) -> 112 | T35: =ROUND(IF(P35=0, IF(N35=0, 0, 1), N35/P35),5) -> 1.016 | V35: 0 | X35: 0 | Z35: =ROUND((V35-X35),5) -> 0 | AB35: =ROUND(IF(X35=0, IF(V35=0, 0, 1), V35/X35),5) -> 0 | AD35: 0 | AF35: 0 | AH35: =ROUND((AD35-AF35),5) -> 0 | AJ35: =ROUND(IF(AF35=0, IF(AD35=0, 0, 1), AD35/AF35),5) -> 0 | AL35: 654 | AN35: 500 | AP35: =ROUND((AL35-AN35),5) -> 154 | AR35: =ROUND(IF(AN35=0, IF(AL35=0, 0, 1), AL35/AN35),5) -> 1.308 | AT35: 2095 | AV35: 1000 | AX35: =ROUND((AT35-AV35),5) -> 1095 | AZ35: =ROUND(IF(AV35=0, IF(AT35=0, 0, 1), AT35/AV35),5) -> 2.095 | BB35: 222 | BD35: 0 | BF35: =ROUND((BB35-BD35),5) -> 222 | BH35: =ROUND(IF(BD35=0, IF(BB35=0, 0, 1), BB35/BD35),5) -> 1 | BJ35: =ROUND(F35+N35+V35+AD35+AL35+AT35+BB35,5) -> 10083 | BL35: =ROUND(H35+P35+X35+AF35+AN35+AV35+BD35,5) -> 8500 | BN35: =ROUND((BJ35-BL35),5) -> 1583 | BP35: =ROUND(IF(BL35=0, IF(BJ35=0, 0, 1), BJ35/BL35),5) -> 1.18624
E36: 68000 · Utilities | F36: 5149 | H36: 5801 | J36: =ROUND((F36-H36),5) -> -652 | L36: =ROUND(IF(H36=0, IF(F36=0, 0, 1), F36/H36),5) -> 0.88761 | N36: 5827 | P36: 5801 | R36: =ROUND((N36-P36),5) -> 26 | T36: =ROUND(IF(P36=0, IF(N36=0, 0, 1), N36/P36),5) -> 1.00448 | V36: 5066 | X36: 5801 | Z36: =ROUND((V36-X36),5) -> -735 | AB36: =ROUND(IF(X36=0, IF(V36=0, 0, 1), V36/X36),5) -> 0.8733 | AD36: 4311 | AF36: 5801 | AH36: =ROUND((AD36-AF36),5) -> -1490 | AJ36: =ROUND(IF(AF36=0, IF(AD36=0, 0, 1), AD36/AF36),5) -> 0.74315 | AL36: 5686 | AN36: 5801 | AP36: =ROUND((AL36-AN36),5) -> -115 | AR36: =ROUND(IF(AN36=0, IF(AL36=0, 0, 1), AL36/AN36),5) -> 0.98018 | AT36: 8059 | AV36: 5801 | AX36: =ROUND((AT36-AV36),5) -> 2258 | AZ36: =ROUND(IF(AV36=0, IF(AT36=0, 0, 1), AT36/AV36),5) -> 1.38924 | BB36: 8299 | BD36: 5801 | BF36: =ROUND((BB36-BD36),5) -> 2498 | BH36: =ROUND(IF(BD36=0, IF(BB36=0, 0, 1), BB36/BD36),5) -> 1.43062 | BJ36: =ROUND(F36+N36+V36+AD36+AL36+AT36+BB36,5) -> 42397 | BL36: =ROUND(H36+P36+X36+AF36+AN36+AV36+BD36,5) -> 40607 | BN36: =ROUND((BJ36-BL36),5) -> 1790 | BP36: =ROUND(IF(BL36=0, IF(BJ36=0, 0, 1), BJ36/BL36),5) -> 1.04408
D37: Total Expense | F37: =ROUND(SUM(F13:F36),5) -> 141187 | H37: =ROUND(SUM(H13:H36),5) -> 145872 | J37: =ROUND((F37-H37),5) -> -4685 | L37: =ROUND(IF(H37=0, IF(F37=0, 0, 1), F37/H37),5) -> 0.96788 | N37: =ROUND(SUM(N13:N36),5) -> 143447 | P37: =ROUND(SUM(P13:P36),5) -> 159606 | R37: =ROUND((N37-P37),5) -> -16159 | T37: =ROUND(IF(P37=0, IF(N37=0, 0, 1), N37/P37),5) -> 0.89876 | V37: =ROUND(SUM(V13:V36),5) -> 129146 | X37: =ROUND(SUM(X13:X36),5) -> 159517 | Z37: =ROUND((V37-X37),5) -> -30371 | AB37: =ROUND(IF(X37=0, IF(V37=0, 0, 1), V37/X37),5) -> 0.80961 | AD37: =ROUND(SUM(AD13:AD36),5) -> 170086 | AF37: =ROUND(SUM(AF13:AF36),5) -> 168444 | AH37: =ROUND((AD37-AF37),5) -> 1642 | AJ37: =ROUND(IF(AF37=0, IF(AD37=0, 0, 1), AD37/AF37),5) -> 1.00975 | AL37: =ROUND(SUM(AL13:AL36),5) -> 188128 | AN37: =ROUND(SUM(AN13:AN36),5) -> 164129 | AP37: =ROUND((AL37-AN37),5) -> 23999 | AR37: =ROUND(IF(AN37=0, IF(AL37=0, 0, 1), AL37/AN37),5) -> 1.14622 | AT37: =ROUND(SUM(AT13:AT36),5) -> 180150 | AV37: =ROUND(SUM(AV13:AV36),5) -> 168901 | AX37: =ROUND((AT37-AV37),5) -> 11249 | AZ37: =ROUND(IF(AV37=0, IF(AT37=0, 0, 1), AT37/AV37),5) -> 1.0666 | BB37: =ROUND(SUM(BB13:BB36),5) -> 163384 | BD37: =ROUND(SUM(BD13:BD36),5) -> 174068 | BF37: =ROUND((BB37-BD37),5) -> -10684 | BH37: =ROUND(IF(BD37=0, IF(BB37=0, 0, 1), BB37/BD37),5) -> 0.93862 | BJ37: =ROUND(F37+N37+V37+AD37+AL37+AT37+BB37,5) -> 1115528 | BL37: =ROUND(H37+P37+X37+AF37+AN37+AV37+BD37,5) -> 1140537 | BN37: =ROUND((BJ37-BL37),5) -> -25009 | BP37: =ROUND(IF(BL37=0, IF(BJ37=0, 0, 1), BJ37/BL37),5) -> 0.97807
B38: Net Ordinary Income | F38: =ROUND(F3+F12-F37,5) -> -19222 | H38: =ROUND(H3+H12-H37,5) -> -54813 | J38: =ROUND((F38-H38),5) -> 35591 | L38: =ROUND(IF(H38=0, IF(F38=0, 0, 1), F38/H38),5) -> 0.35068 | N38: =ROUND(N3+N12-N37,5) -> -22888 | P38: =ROUND(P3+P12-P37,5) -> -52457 | R38: =ROUND((N38-P38),5) -> 29569 | T38: =ROUND(IF(P38=0, IF(N38=0, 0, 1), N38/P38),5) -> 0.43632 | V38: =ROUND(V3+V12-V37,5) -> 10771 | X38: =ROUND(X3+X12-X37,5) -> -10419 | Z38: =ROUND((V38-X38),5) -> 21190 | AB38: =ROUND(IF(X38=0, IF(V38=0, 0, 1), V38/X38),5) -> -1.03378 | AD38: =ROUND(AD3+AD12-AD37,5) -> 20203 | AF38: =ROUND(AF3+AF12-AF37,5) -> 6382 | AH38: =ROUND((AD38-AF38),5) -> 13821 | AJ38: =ROUND(IF(AF38=0, IF(AD38=0, 0, 1), AD38/AF38),5) -> 3.16562 | AL38: =ROUND(AL3+AL12-AL37,5) -> -20253 | AN38: =ROUND(AN3+AN12-AN37,5) -> 8217 | AP38: =ROUND((AL38-AN38),5) -> -28470 | AR38: =ROUND(IF(AN38=0, IF(AL38=0, 0, 1), AL38/AN38),5) -> -2.46477 | AT38: =ROUND(AT3+AT12-AT37,5) -> 29246 | AV38: =ROUND(AV3+AV12-AV37,5) -> 18921 | AX38: =ROUND((AT38-AV38),5) -> 10325 | AZ38: =ROUND(IF(AV38=0, IF(AT38=0, 0, 1), AT38/AV38),5) -> 1.54569 | BB38: =ROUND(BB3+BB12-BB37,5) -> -13928 | BD38: =ROUND(BD3+BD12-BD37,5) -> 8470 | BF38: =ROUND((BB38-BD38),5) -> -22398 | BH38: =ROUND(IF(BD38=0, IF(BB38=0, 0, 1), BB38/BD38),5) -> -1.64439 | BJ38: =ROUND(F38+N38+V38+AD38+AL38+AT38+BB38,5) -> -16071 | BL38: =ROUND(H38+P38+X38+AF38+AN38+AV38+BD38,5) -> -75699 | BN38: =ROUND((BJ38-BL38),5) -> 59628 | BP38: =ROUND(IF(BL38=0, IF(BJ38=0, 0, 1), BJ38/BL38),5) -> 0.2123
B39: Other Income/Expense
C40: Other Income
D41: 70001 · Interest & Dividend Income | F41: 1 | H41: 1 | J41: =ROUND((F41-H41),5) -> 0 | L41: =ROUND(IF(H41=0, IF(F41=0, 0, 1), F41/H41),5) -> 1 | N41: 0 | P41: 1 | R41: =ROUND((N41-P41),5) -> -1 | T41: =ROUND(IF(P41=0, IF(N41=0, 0, 1), N41/P41),5) -> 0 | V41: 0 | X41: 1 | Z41: =ROUND((V41-X41),5) -> -1 | AB41: =ROUND(IF(X41=0, IF(V41=0, 0, 1), V41/X41),5) -> 0 | AD41: 0 | AF41: 1 | AH41: =ROUND((AD41-AF41),5) -> -1 | AJ41: =ROUND(IF(AF41=0, IF(AD41=0, 0, 1), AD41/AF41),5) -> 0 | AL41: 0 | AN41: 1 | AP41: =ROUND((AL41-AN41),5) -> -1 | AR41: =ROUND(IF(AN41=0, IF(AL41=0, 0, 1), AL41/AN41),5) -> 0 | AT41: 1 | AV41: 1 | AX41: =ROUND((AT41-AV41),5) -> 0 | AZ41: =ROUND(IF(AV41=0, IF(AT41=0, 0, 1), AT41/AV41),5) -> 1 | BB41: 0 | BD41: 1 | BF41: =ROUND((BB41-BD41),5) -> -1 | BH41: =ROUND(IF(BD41=0, IF(BB41=0, 0, 1), BB41/BD41),5) -> 0 | BJ41: =ROUND(F41+N41+V41+AD41+AL41+AT41+BB41,5) -> 2 | BL41: =ROUND(H41+P41+X41+AF41+AN41+AV41+BD41,5) -> 7 | BN41: =ROUND((BJ41-BL41),5) -> -5 | BP41: =ROUND(IF(BL41=0, IF(BJ41=0, 0, 1), BJ41/BL41),5) -> 0.28571
D42: 70011 · Assessment Fee Income | F42: 125 | H42: 125 | J42: =ROUND((F42-H42),5) -> 0 | L42: =ROUND(IF(H42=0, IF(F42=0, 0, 1), F42/H42),5) -> 1 | N42: 125 | P42: 125 | R42: =ROUND((N42-P42),5) -> 0 | T42: =ROUND(IF(P42=0, IF(N42=0, 0, 1), N42/P42),5) -> 1 | V42: 125 | X42: 125 | Z42: =ROUND((V42-X42),5) -> 0 | AB42: =ROUND(IF(X42=0, IF(V42=0, 0, 1), V42/X42),5) -> 1 | AD42: 125 | AF42: 125 | AH42: =ROUND((AD42-AF42),5) -> 0 | AJ42: =ROUND(IF(AF42=0, IF(AD42=0, 0, 1), AD42/AF42),5) -> 1 | AL42: 125 | AN42: 125 | AP42: =ROUND((AL42-AN42),5) -> 0 | AR42: =ROUND(IF(AN42=0, IF(AL42=0, 0, 1), AL42/AN42),5) -> 1 | AT42: 125 | AV42: 125 | AX42: =ROUND((AT42-AV42),5) -> 0 | AZ42: =ROUND(IF(AV42=0, IF(AT42=0, 0, 1), AT42/AV42),5) -> 1 | BB42: 100 | BD42: 125 | BF42: =ROUND((BB42-BD42),5) -> -25 | BH42: =ROUND(IF(BD42=0, IF(BB42=0, 0, 1), BB42/BD42),5) -> 0.8 | BJ42: =ROUND(F42+N42+V42+AD42+AL42+AT42+BB42,5) -> 850 | BL42: =ROUND(H42+P42+X42+AF42+AN42+AV42+BD42,5) -> 875 | BN42: =ROUND((BJ42-BL42),5) -> -25 | BP42: =ROUND(IF(BL42=0, IF(BJ42=0, 0, 1), BJ42/BL42),5) -> 0.97143
D43: 70012 · Other Member Contributions | F43: 0 | H43: 0 | J43: =ROUND((F43-H43),5) -> 0 | L43: =ROUND(IF(H43=0, IF(F43=0, 0, 1), F43/H43),5) -> 0 | N43: 850 | P43: 0 | R43: =ROUND((N43-P43),5) -> 850 | T43: =ROUND(IF(P43=0, IF(N43=0, 0, 1), N43/P43),5) -> 1 | V43: 1200 | X43: 0 | Z43: =ROUND((V43-X43),5) -> 1200 | AB43: =ROUND(IF(X43=0, IF(V43=0, 0, 1), V43/X43),5) -> 1 | AD43: -85 | AF43: 0 | AH43: =ROUND((AD43-AF43),5) -> -85 | AJ43: =ROUND(IF(AF43=0, IF(AD43=0, 0, 1), AD43/AF43),5) -> 1 | AL43: 125475 | AN43: 81008 | AP43: =ROUND((AL43-AN43),5) -> 44467 | AR43: =ROUND(IF(AN43=0, IF(AL43=0, 0, 1), AL43/AN43),5) -> 1.54892 | AT43: 4450 | AV43: 0 | AX43: =ROUND((AT43-AV43),5) -> 4450 | AZ43: =ROUND(IF(AV43=0, IF(AT43=0, 0, 1), AT43/AV43),5) -> 1 | BB43: 132 | BD43: 0 | BF43: =ROUND((BB43-BD43),5) -> 132 | BH43: =ROUND(IF(BD43=0, IF(BB43=0, 0, 1), BB43/BD43),5) -> 1 | BJ43: =ROUND(F43+N43+V43+AD43+AL43+AT43+BB43,5) -> 132022 | BL43: =ROUND(H43+P43+X43+AF43+AN43+AV43+BD43,5) -> 81008 | BN43: =ROUND((BJ43-BL43),5) -> 51014 | BP43: =ROUND(IF(BL43=0, IF(BJ43=0, 0, 1), BJ43/BL43),5) -> 1.62974
C44: Total Other Income | F44: =ROUND(SUM(F40:F43),5) -> 126 | H44: =ROUND(SUM(H40:H43),5) -> 126 | J44: =ROUND((F44-H44),5) -> 0 | L44: =ROUND(IF(H44=0, IF(F44=0, 0, 1), F44/H44),5) -> 1 | N44: =ROUND(SUM(N40:N43),5) -> 975 | P44: =ROUND(SUM(P40:P43),5) -> 126 | R44: =ROUND((N44-P44),5) -> 849 | T44: =ROUND(IF(P44=0, IF(N44=0, 0, 1), N44/P44),5) -> 7.7381 | V44: =ROUND(SUM(V40:V43),5) -> 1325 | X44: =ROUND(SUM(X40:X43),5) -> 126 | Z44: =ROUND((V44-X44),5) -> 1199 | AB44: =ROUND(IF(X44=0, IF(V44=0, 0, 1), V44/X44),5) -> 10.51587 | AD44: =ROUND(SUM(AD40:AD43),5) -> 40 | AF44: =ROUND(SUM(AF40:AF43),5) -> 126 | AH44: =ROUND((AD44-AF44),5) -> -86 | AJ44: =ROUND(IF(AF44=0, IF(AD44=0, 0, 1), AD44/AF44),5) -> 0.31746 | AL44: =ROUND(SUM(AL40:AL43),5) -> 125600 | AN44: =ROUND(SUM(AN40:AN43),5) -> 81134 | AP44: =ROUND((AL44-AN44),5) -> 44466 | AR44: =ROUND(IF(AN44=0, IF(AL44=0, 0, 1), AL44/AN44),5) -> 1.54806 | AT44: =ROUND(SUM(AT40:AT43),5) -> 4576 | AV44: =ROUND(SUM(AV40:AV43),5) -> 126 | AX44: =ROUND((AT44-AV44),5) -> 4450 | AZ44: =ROUND(IF(AV44=0, IF(AT44=0, 0, 1), AT44/AV44),5) -> 36.31746 | BB44: =ROUND(SUM(BB40:BB43),5) -> 232 | BD44: =ROUND(SUM(BD40:BD43),5) -> 126 | BF44: =ROUND((BB44-BD44),5) -> 106 | BH44: =ROUND(IF(BD44=0, IF(BB44=0, 0, 1), BB44/BD44),5) -> 1.84127 | BJ44: =ROUND(F44+N44+V44+AD44+AL44+AT44+BB44,5) -> 132874 | BL44: =ROUND(H44+P44+X44+AF44+AN44+AV44+BD44,5) -> 81890 | BN44: =ROUND((BJ44-BL44),5) -> 50984 | BP44: =ROUND(IF(BL44=0, IF(BJ44=0, 0, 1), BJ44/BL44),5) -> 1.62259
A45: Net Income (excluding depreciation) | F45: =ROUND(F38+#REF!,5) ->  | H45: =ROUND(H38+#REF!,5) ->  | J45: =ROUND((F45-H45),5) ->  | L45: =ROUND(IF(H45=0, IF(F45=0, 0, 1), F45/H45),5) ->  | N45: =ROUND(N38+#REF!,5) ->  | P45: =ROUND(P38+#REF!,5) ->  | R45: =ROUND((N45-P45),5) ->  | T45: =ROUND(IF(P45=0, IF(N45=0, 0, 1), N45/P45),5) ->  | V45: =ROUND(V38+#REF!,5) ->  | X45: =ROUND(X38+#REF!,5) ->  | Z45: =ROUND((V45-X45),5) ->  | AB45: =ROUND(IF(X45=0, IF(V45=0, 0, 1), V45/X45),5) ->  | AD45: =ROUND(AD38+#REF!,5) ->  | AF45: =ROUND(AF38+#REF!,5) ->  | AH45: =ROUND((AD45-AF45),5) ->  | AJ45: =ROUND(IF(AF45=0, IF(AD45=0, 0, 1), AD45/AF45),5) ->  | AL45: =ROUND(AL38+#REF!,5) ->  | AN45: =ROUND(AN38+#REF!,5) ->  | AP45: =ROUND((AL45-AN45),5) ->  | AR45: =ROUND(IF(AN45=0, IF(AL45=0, 0, 1), AL45/AN45),5) ->  | AT45: =ROUND(AT38+#REF!,5) ->  | AV45: =ROUND(AV38+#REF!,5) ->  | AX45: =ROUND((AT45-AV45),5) ->  | AZ45: =ROUND(IF(AV45=0, IF(AT45=0, 0, 1), AT45/AV45),5) ->  | BB45: =BB38+BB44 -> -13696 | BD45: =BD38+BD44 -> 8596 | BF45: =ROUND((BB45-BD45),5) -> -22292 | BH45: =ROUND(IF(BD45=0, IF(BB45=0, 0, 1), BB45/BD45),5) -> -1.5933 | BJ45: =BJ38+BJ44 -> 116803 | BL45: =BL38+BL44 -> 6191 | BN45: =ROUND((BJ45-BL45),5) -> 110612 | BP45: =ROUND(IF(BL45=0, IF(BJ45=0, 0, 1), BJ45/BL45),5) -> 18.86658

Sheet YTD Rev by Type
F1: Events- Member | H1: Events- Member Referral & Other | J1: Events-Club | L1: Member Services | N1: TOTAL
B2: Ordinary Income/Expense
D3: Income
E4: 40000 · Member Dues and Fees | F4: 0 | H4: 0 | J4: 0 | L4: 473200 | N4: =ROUND(SUM(F4:L4),5) -> 473200
E5: 40100 · Meal Sales | F5: 117012 | H5: 66334 | J5: 98994 | L5: 203527 | N5: =ROUND(SUM(F5:L5),5) -> 485867
E6: 40200 · Beverage Sales | F6: 9355 | H6: 6158 | J6: 96 | L6: 60020 | N6: =ROUND(SUM(F6:L6),5) -> 75629
E7: 40300 · Service Fees | F7: 19089 | H7: 6758 | J7: 182 | L7: 16792 | N7: =ROUND(SUM(F7:L7),5) -> 42821
E8: 40400 · Rental Income | F8: 8457 | H8: 11264 | J8: 0 | L8: 0 | N8: =ROUND(SUM(F8:L8),5) -> 19721
E9: 40800 · Other Income | F9: 725 | H9: 800 | J9: 0 | L9: 696 | N9: =ROUND(SUM(F9:L9),5) -> 2221
D10: Total Income | F10: =ROUND(SUM(F3:F9),5) -> 154638 | H10: =ROUND(SUM(H3:H9),5) -> 91314 | J10: =ROUND(SUM(J3:J9),5) -> 99272 | L10: =ROUND(SUM(L3:L9),5) -> 754235 | N10: =ROUND(SUM(F10:L10),5) -> 1099459
C11: Prior Year Revenues | F11: 119887 | H11: 99778 | J11: 59065 | L11: 625670 | N11: 904400
C12: Change from Prior Year | F12: =F10-F11 -> 34751 | H12: =H10-H11 -> -8464 | J12: =J10-J11 -> 40207 | L12: =L10-L11 -> 128565 | N12: =N10-N11 -> 195059
C14: % of Total Revenues | F14: =F10/N10 -> 0.1406491738 | H14: =H10/N10 -> 0.08305357453 | J14: =J10/N10 -> 0.09029167982 | L14: =L10/N10 -> 0.6860055718 | N14: 1

Sheet July Rev by Type
F1: Events- Member | H1: Events- Member Referral & Other | J1: Events-Club | L1: Member Services | N1: TOTAL
B2: Ordinary Income/Expense
D3: Income
E4: 40000 · Member Dues and Fees | F4: 0 | H4: 0 | J4: 0 | L4: 63550 | N4: =ROUND(SUM(F4:L4),5) -> 63550
E5: 40100 · Meal Sales | F5: 14483 | H5: 13149 | J5: 17520 | L5: 25545 | N5: =ROUND(SUM(F5:L5),5) -> 70697
E6: 40200 · Beverage Sales | F6: 0 | H6: 0 | J6: 56 | L6: 7827 | N6: =ROUND(SUM(F6:L6),5) -> 7883
E7: 40300 · Service Fees | F7: 2813 | H7: 0 | J7: 0 | L7: 3164 | N7: =ROUND(SUM(F7:L7),5) -> 5977
E8: 40400 · Rental Income | F8: 0 | H8: 1000 | J8: 0 | L8: 0 | N8: =ROUND(SUM(F8:L8),5) -> 1000
E9: 40800 · Other Income | F9: 350 | H9: 0 | J9: 0 | L9: 0 | N9: =ROUND(SUM(F9:L9),5) -> 350
D10: Total Income | F10: =ROUND(SUM(F3:F9),5) -> 17646 | H10: =ROUND(SUM(H3:H9),5) -> 14149 | J10: =ROUND(SUM(J3:J9),5) -> 17576 | L10: =ROUND(SUM(L3:L9),5) -> 100086 | N10: =ROUND(SUM(F10:L10),5) -> 149457
C11: Prior Year Revenues | F11: 22401 | H11: 54430 | J11: 18308 | L11: 116412 | N11: 211551
C12: Change from Prior Year | F12: =F10-F11 -> -4755 | H12: =H10-H11 -> -40281 | J12: =J10-J11 -> -732 | L12: =L10-L11 -> -16326 | N12: =N10-N11 -> -62094
C14: % of Total Revenues | F14: =F10/N10 -> 0.118067404 | H14: =H10/N10 -> 0.09466936979 | J14: =J10/N10 -> 0.1175990419 | L14: =L10/N10 -> 0.6696641843 | N14: 1

Sheet Balance Sheet
E2: Jul 31, 23 | G2: Jul 31, 22 | I2: $ Change | K2: % Change
A3: ASSETS
B4: Current Assets
C5: Checking/Savings | E5: 489787 | G5: 271627 | I5: =ROUND((E5-G5),5) -> 218160 | K5: =ROUND(IF(E5=0, IF(G5=0, 0, SIGN(-G5)), IF(G5=0, SIGN(E5), (E5-G5)/ABS(G5))),5) -> 0.80316
C6: Accounts Receivable | E6: 160530 | G6: 317002 | I6: =ROUND((E6-G6),5) -> -156472 | K6: =ROUND(IF(E6=0, IF(G6=0, 0, SIGN(-G6)), IF(G6=0, SIGN(E6), (E6-G6)/ABS(G6))),5) -> -0.4936
C7: Other Current Assets | E7: 92588 | G7: 116699 | I7: =ROUND((E7-G7),5) -> -24111 | K7: =ROUND(IF(E7=0, IF(G7=0, 0, SIGN(-G7)), IF(G7=0, SIGN(E7), (E7-G7)/ABS(G7))),5) -> -0.20661
B8: Total Current Assets | E8: =ROUND(SUM(E4:E7),5) -> 742905 | G8: =ROUND(SUM(G4:G7),5) -> 705328 | I8: =ROUND((E8-G8),5) -> 37577 | K8: =ROUND(IF(E8=0, IF(G8=0, 0, SIGN(-G8)), IF(G8=0, SIGN(E8), (E8-G8)/ABS(G8))),5) -> 0.05328
B9: Fixed Assets | E9: 1052052 | G9: 1059347 | I9: =ROUND((E9-G9),5) -> -7295 | K9: =ROUND(IF(E9=0, IF(G9=0, 0, SIGN(-G9)), IF(G9=0, SIGN(E9), (E9-G9)/ABS(G9))),5) -> -0.00689
A10: TOTAL ASSETS | E10: =ROUND(E3+SUM(E8:E9),5) -> 1794957 | G10: =ROUND(G3+SUM(G8:G9),5) -> 1764675 | I10: =ROUND((E10-G10),5) -> 30282 | K10: =ROUND(IF(E10=0, IF(G10=0, 0, SIGN(-G10)), IF(G10=0, SIGN(E10), (E10-G10)/ABS(G10))),5) -> 0.01716
A11: LIABILITIES & EQUITY
B12: Liabilities
C13: Current Liabilities
D14: Accounts Payable | E14: 34603 | G14: 123972 | I14: =ROUND((E14-G14),5) -> -89369 | K14: =ROUND(IF(E14=0, IF(G14=0, 0, SIGN(-G14)), IF(G14=0, SIGN(E14), (E14-G14)/ABS(G14))),5) -> -0.72088
D15: Other Current Liabilities | E15: 6237 | G15: 20162 | I15: =ROUND((E15-G15),5) -> -13925 | K15: =ROUND(IF(E15=0, IF(G15=0, 0, SIGN(-G15)), IF(G15=0, SIGN(E15), (E15-G15)/ABS(G15))),5) -> -0.69066
C16: Total Current Liabilities | E16: =ROUND(SUM(E13:E15),5) -> 40840 | G16: =ROUND(SUM(G13:G15),5) -> 144134 | I16: =ROUND((E16-G16),5) -> -103294 | K16: =ROUND(IF(E16=0, IF(G16=0, 0, SIGN(-G16)), IF(G16=0, SIGN(E16), (E16-G16)/ABS(G16))),5) -> -0.71665
B17: Total Liabilities | E17: =ROUND(E12+E16,5) -> 40840 | G17: =ROUND(G12+G16,5) -> 144134 | I17: =ROUND((E17-G17),5) -> -103294 | K17: =ROUND(IF(E17=0, IF(G17=0, 0, SIGN(-G17)), IF(G17=0, SIGN(E17), (E17-G17)/ABS(G17))),5) -> -0.71665
B18: Equity | E18: 1754117 | G18: 1620542 | I18: =ROUND((E18-G18),5) -> 133575 | K18: =ROUND(IF(E18=0, IF(G18=0, 0, SIGN(-G18)), IF(G18=0, SIGN(E18), (E18-G18)/ABS(G18))),5) -> 0.08243
A19: TOTAL LIABILITIES & EQUITY | E19: =ROUND(E11+SUM(E17:E18),5) -> 1794957 | G19: =ROUND(G11+SUM(G17:G18),5) -> 1764676 | I19: =ROUND((E19-G19),5) -> 30281 | K19: =ROUND(IF(E19=0, IF(G19=0, 0, SIGN(-G19)), IF(G19=0, SIGN(E19), (E19-G19)/ABS(G19))),5) -> 0.01716
